Cogmind - Beta 16.1 @@@ ROGUE MODE // 2026.04.26 @ 15:33:26 Player: Bereft Result: Destroyed by G3-RY8(R) with Subdweller Laser Performance ------------- Evolutions (0) 0 Regions Visited (2) 400 Robots Destroyed (14) 70 Value Destroyed (202) 202 Prototype IDs (0) 0 Alien Tech Used (0) 0 Bonus (0) 0 TOTAL SCORE: 672 Bonus ------- None Cogmind --------- Core Integrity 0/250 Matter 110/300 Energy 100/100 System Corruption 0% Temperature Cool (6) Movement Walking (140) Location -10/Subcaves Parts ------- > --- POWER (1) -------- (None) > --- PROPULSION (2) --- Makeshift Leg > --- UTILITY (2) ------ Subdweller Optics Makeshift System Shield > --- WEAPON (2) ------- Subdweller Machine Gun > --- INVENTORY (5) ---- Seismic Detector Makeshift Light Armor Plating Datajack Peak State ------------ > --- POWER ------------ Subdweller Power Source > --- PROPULSION ------- Makeshift Leg > --- UTILITY ---------- Subdweller Optics Makeshift System Shield > --- WEAPON ----------- Subdweller Machine Gun Subdweller Shrapnel Launcher > --- INVENTORY -------- Seismic Detector Makeshift Light Armor Plating Datajack [Rating: 16] Favorites ----------- Power Ion Engine Engine Ion Engine Propulsion Aluminum Leg Leg Aluminum Leg Flight Unit Flight Unit Utility Small Storage Unit Device Seismic Detector Storage Small Storage Unit Hackware Makeshift System Shield Weapon Medium Laser Energy Gun Medium Laser Ballistic Gun Assault Rifle Launcher Subdweller Shrapnel Launcher Build | -11 -10 -10 ------- Run | Yrd Mat Sub Slots Evolved . | . . . Power . | . . . Propulsion . | . . . Utility . | . . . Weapon . | . . . Parts Attached 22 | 8 8 6 Power 5 | 1 3 1 Engine 5 | 1 3 1 Core . | . . . Reactor . | . . . Propulsion 6 | 2 3 1 Treads . | . . . Leg 3 | 2 . 1 Wheel . | . . . Hover . | . . . Flight 3 | . 3 . Utility 6 | 3 1 2 Device 3 | 1 1 1 Storage 2 | 2 . . Processor . | . . . Hackware 1 | . . 1 Protection . | . . . Artifact . | . . . Weapon 5 | 2 1 2 Energy Gun 1 | 1 . . Energy Cannon . | . . . Ballistic Gun 3 | 1 1 1 Ballistic Cannon . | . . . Launcher 1 | . . 1 Special Weapon . | . . . Impact Weapon . | . . . Slashing Weapon . | . . . Piercing Weapon . | . . . Special Melee Weapon . | . . . Unidentified Prototypes . | . . . Parts Lost 2 | . . 2 Power 1 | . . 1 Propulsion . | . . . Utility . | . . . Weapon 1 | . . 1 Highest Loss Streak 2 | . . 2 To Critical Strikes . | . . . Average Backups 4 | 3 6 4 Power 1 | 1 3 . Propulsion . | . . . Utility 1 | 1 2 2 Weapon . | . 1 . Tool/Special . | . . . Unused Backups 2 | . . 2 Power . | . . . Propulsion . | . . . Utility 1 | . . 1 Weapon . | . . . Tool/Special 1 | . . 1 Average Slot Usage (%) 88 | . 86 91 Engine 13 | . 14 13 Leg 14 | . 24 1 Flight 12 | . 3 25 Device 13 | . 14 13 Storage 13 | . 14 11 Energy Gun 10 | . 14 5 Ballistic Gun 4 | . 1 8 Launcher 3 | . . 8 Peak Build Rating 16 | 7 7 16 Average Rating 6 | 6 6 8 On Entrance 4 | . 7 6 Avg Prop Armor Cover (%) 4 | . 4 . Naked Turns . | . . . Heaviest Build 19 | 15 15 19 Greatest Support 20 | 20 20 20 Greatest Overweight (x) 2 | . 2 2 Average Overweight (x) . | . . . Largest Inventory Capacity 8 | 8 8 5 Average Capacity 7 | 7 7 5 Most Carried 8 | 7 8 5 Average Carried 4 | 3 6 4 Final Capacity 8 | 8 5 5 Final Carried 7 | 7 4 3 Class Distribution -------------------- 76% | Mutant 21% | Scavenger-Mutant Dominant Class ---------------- Mutant | -10/Materials Scavenger-Mutant | -10/Subcaves Resources | -11 -10 -10 ----------- Run | Yrd Mat Sub Matter Collected 505 | 318 157 30 Remotely . | . . . Salvage Created 354 | 76 219 59 Parts 25 | 9 14 2 Haulers Intercepted . | . . . Recyclers Shooed 1 | . 1 . Parts Field Recycled . | . . . Retrieved Matter . | . . . Parts Self-Destructed . | . . . Prevented . | . . . Parts Restored . | . . . Kills | -11 -10 -10 ------- Run | Yrd Mat Sub Combat Hostiles Destroyed 9 | . 7 2 Guns 7 | . 7 . AOE 2 | . . 2 Classes Destroyed 6 | 2 3 1 Worker 1 | 1 . . Tunneler 3 | 3 . . Recycler 1 | . 1 . Swarmer 6 | . 6 . Grunt 1 | . 1 . Subdweller 2 | . . 2 Best Kill Streak 3 | 2 3 2 Combat Bots Only 3 | . 3 2 Max Kills in Single Turn 1 | 1 1 1 Gunslinging . | . . . Exploded 1 | . . 1 Melee . | . . . Uniques/NPCs Destroyed . | . . . Combat | -11 -10 -10 -------- Run | Yrd Mat Sub Hostile Shots Fired 89 | 3 75 11 Missed 37 | 2 31 4 Hits 52 | 1 44 7 Projectile 52 | 1 44 7 Critical Strikes 1 | . . 1 Damage Taken 743 | 11 371 361 Core 260 | . 106 154 Absorbed by Shields . | . . . Core Remaining (%) 100 | 100 . . Volleys Fired 68 | 6 50 12 Largest 2 | 2 2 2 Hottest 70 | 70 70 70 Shots Fired 87 | 12 58 17 Gun 82 | 12 58 12 Cannon . | . . . Launcher 5 | . . 5 Special . | . . . Kinetic 30 | 6 9 15 Thermal 57 | 6 49 2 Explosive . | . . . Electromagnetic . | . . . Robot Hit Streak 11 | 7 6 11 Robot Miss Streak 5 | 1 5 1 Penetration Max . | . . . Secondary Targets . | . . . Shots Hit Robots 56 | 10 33 13 Core Hits 21 | 4 14 3 Critical Kills . | . . . Critical Parts Destroyed . | . . . Critical Strikes 4 | 2 2 . Burn 4 | 2 2 . Melee Attacks . | . . . Impact . | . . . Slashing . | . . . Piercing . | . . . Sneak Attacks . | . . . Combat Hostiles . | . . . Follow-up Attacks . | . . . Damage Inflicted 1011 | 127 439 445 Guns 734 | 127 439 168 Cannons . | . . . Explosions 277 | . . 277 Melee . | . . . Ramming . | . . . Kinetic 582 | 65 72 445 Thermal 429 | 62 367 . Explosive . | . . . Electromagnetic . | . . . Impact . | . . . Slashing . | . . . Piercing . | . . . Highest Corruption . | . . . Average Corruption . | . . . Corruption Purged . | . . . Corruption Blocked . | . . . Overload Shots . | . . . Overflow Damage 34 | . . 34 Projectiles . | . . . Explosions 34 | . . 34 Melee . | . . . Knockbacks . | . . . Impact . | . . . Kinetic . | . . . Secondary . | . . . Self-Inflicted Damage 202 | . . 202 Shots 5 | . . 5 Rammed . | . . . Targets Rammed . | . . . Kicked . | . . . Crushed . | . . . Highest Temperature 249 | 27 242 249 Average Temperature 60 | 11 60 137 Received Heat Transfer 365 | . 60 305 Effects 2 | . 2 . Interference 2 | . 2 . Siege Activations . | . . . Martial Activations . | . . . Shielding Activations . | . . . Robots Disrupted . | . . . Combat Hostiles . | . . . Robots Corrupted . | . . . Combat Hostiles . | . . . Parts Fried . | . . . Impact Corruptions . | . . . Robots Melted . | . . . Combat Hostiles . | . . . Parts Melted 4 | 2 2 . Heat Transferred 1554 | 333 1221 . Parts Sabotaged . | . . . Parts Stolen . | . . . Parts Stripped . | . . . Power Chain Reactions . | . . . Alert | -11 -10 -10 ------- Run | Yrd Mat Sub Maximum Alert Level . | . . . Low Security (%) 100 | 100 100 . Level 1 . | . . . Level 2 . | . . . Level 3 . | . . . Level 4 . | . . . Level 5 . | . . . High Security . | . . . Max Security . | . . . Peak Influence 105 | 5 105 . Initial . | . . . Average 6 | . 15 . Influence Increases 260 | 20 240 . Destroy 0b10 Robot/C 140 | . 140 . Destroy 0b10 Robot/NC 25 | 20 5 . Destroy Leader 30 | . 30 . Successful Hack 5 | . 5 . Partial Spotted 15 | . 15 . Lose Combat Pursuer 45 | . 45 . Influence Decreases 260 | 20 135 105 Entered New Map 51 | . . 51 Time Decay 209 | 20 135 54 Squads Dispatched 2 | . 2 . Investigation . | . . . Extermination . | . . . Reinforcement 2 | . 2 . Assault . | . . . Garrison . | . . . Intercept . | . . . Searches Triggered . | . . . Construction Impeded . | . . . Haulers Reinforced . | . . . Active Scanning Responses . | . . . Cargo Convoy Interrupts . | . . . Stealth | -11 -10 -10 --------- Run | Yrd Mat Sub Distress Signals 1 | . 1 . Communications Jammed . | . . . Distress Signals . | . . . Times Spotted 16 | 1 12 3 Peak Tracking Total 5 | 1 5 2 Tactical Retreats 3 | . 3 . Traps | -11 -10 -10 ------- Run | Yrd Mat Sub Traps Triggered . | . . . Indirectly . | . . . Trap Hack Attempts . | . . . Triggered . | . . . Disarmed . | . . . Reprogrammed . | . . . Reused . | . . . Traps Extracted . | . . . Installed . | . . . Triggered . | . . . Machines | -11 -10 -10 ---------- Run | Yrd Mat Sub Machines Disabled . | . . . Max in Single Turn . | . . . Machines Repaired . | . . . Machines Dismantled . | . . . Machines Sabotaged . | . . . Overloaded Fab Kills . | . . . Hacking | -11 -10 -10 --------- Run | Yrd Mat Sub Machines Accessed 3 | . 3 . Terminals 2 | . 2 . Fabricators . | . . . Repair Stations . | . . . Recycling Units 1 | . 1 . Scanalyzers . | . . . Garrison Access . | . . . Total Hacks 9 | . 9 . Successful 4 | . 4 . Failed 5 | . 5 . Catastrophic . | . . . Database Lockouts . | . . . Manual 2 | . 2 . Terminals 8 | . 8 . Fabricators . | . . . Repair Stations . | . . . Recycling Units 1 | . 1 . Scanalyzers . | . . . Garrison Access . | . . . Terminal Hacks 2 | . 2 . Zone Layout 2 | . 2 . Fabricator Hacks . | . . . Repair Station Hacks . | . . . Recycling Unit Hacks . | . . . Scanalyzer . | . . . Garrison Access Hacks . | . . . Unauthorized Hacks 2 | . 2 . Terminals 1 | . 1 . Track 1 | . 1 . Fabricators . | . . . Repair Stations . | . . . Recycling Units 1 | . 1 . Reject 1 | . 1 . Scanalyzers . | . . . Garrison Access . | . . . Data Cores Recovered . | . . . Used . | . . . Hacking Detections 2 | . 2 . Full Trace Events 2 | . 2 . Feedback Events . | . . . Feedback Blocked . | . . . Robot Schematics Acquired . | . . . Robots Built . | . . . Authchips . | . . . Time . | . . . Total Robot Build Rating . | . . . Part Schematics Acquired . | . . . Parts Built . | . . . Authchips . | . . . Time . | . . . Total Part Build Rating . | . . . Part Studies Acquired . | . . . Parts Repaired . | . . . Time . | . . . Parts Recycled . | . . . Recycled Matter . | . . . Retrieved Matter . | . . . Retrieved Components . | . . . Parts Scanalyzed . | . . . Part Schematics Acquired . | . . . Parts Damaged . | . . . Bothacking | -11 -10 -10 ------------ Run | Yrd Mat Sub Used RIF Installer . | . . . Robots Hacked . | . . . Non-combat . | . . . Combat . | . . . Robot Hacks Applied . | . . . Relay Couplers Released . | . . . Fabnet Peak Effective % . | . . . Robots Rewired . | . . . Allies Hacked . | . . . Hacks Repelled . | . . . Allies | -11 -10 -10 -------- Run | Yrd Mat Sub Total Allies . | . . . Largest Group . | . . . Highest-Rated Group . | . . . Highest-Rated Ally . | . . . Total Orders . | . . . Ally Attacks . | . . . Total Damage . | . . . Kills . | . . . Allies Corrupted . | . . . Allies Melted . | . . . Intel | -11 -10 -10 ------- Run | Yrd Mat Sub Active Infowar (turns) 1633 | 95 893 645 Optics 52 | . . 52 Seismic 1581 | 95 893 593 Robot Analysis Total . | . . . Derelict Logs Recovered 1 | . . 1 Drone Launches . | . . . Drone Recoveries . | . . . Exploration | -11 -10 -10 ------------- Run | Yrd Mat Sub Turns Passed 2961 | 1396 918 647 Spaces Moved 1776 | 490 436 850 Core 5 | 5 . . Treads . | . . . Legs 865 | 485 354 26 Wheels . | . . . Hover . | . . . Flight 906 | . 82 824 Fastest Speed 37 | 50 37 37 Average Speed 92 | 119 108 69 Slowest Speed 210 | 120 210 197 Overloaded Moves . | . . . Propulsion Burnouts . | . . . Robots Hopped . | . . . Potential Cave-ins . | . . . Cave-ins Triggered . | . . . Exploration Rate (%) 31 | 20 39 36 Regions Visited 2 Branch Regions 1 Pre-discovered Areas 2 | . . 2 Known Exits Taken . | . . . Unknown Exits Taken 2 | 1 1 . Scrap Searched 4 | . . 4 Spaces Dug . | . . . Terrain Destroyed 51 | . . 51 Melee . | . . . Projectile . | . . . AOE 51 | . . 51 Terrain Rammed . | . . . Walls Destroyed . | . . . Machines Disabled . | . . . Actions | -11 -10 -10 --------- Run | Yrd Mat Sub Total 2997 | 1286 820 891 Wait 1088 | 775 312 1 Move 1774 | 489 435 850 Hop . | . . . Pick Up 13 | 7 1 5 Fast Attach 14 | 7 3 4 Attach 5 | 1 2 2 Detach 4 | 1 1 2 Swap 13 | . 8 5 Drop 18 | . 8 10 Fire 68 | 6 50 12 Melee . | . . . Ram . | . . . Kick . | . . . Crush . | . . . Escape Stasis . | . . . Rewire . | . . . Trap . | . . . Miscellaneous . | . . . Route ------- -11/Scrapyard -10/Materials (discovered 3 exits: [*Mat] / [*Min] / [*Sub]) -10/Subcaves (discovered 1 exit: [*Mat]) History --------- Turn | Location | Event 3 | -11/Scrapyard | Discovered new exit (range 15) 1074 | -11/Scrapyard | Assembled infested the area 1397 | -11/Scrapyard | Entered Materials 1398 | -10/Materials | Build established: Mutant 1673 | -10/Materials | Discovered new exit (range 14) 1675 | -10/Materials | Discovered new exit (range 6) 1802 | -10/Materials | Discovered new exit (range 15) 2315 | -10/Materials | Entered Subcaves 2316 | -10/Subcaves | Approached by a straggling Scientist 2317 | -10/Subcaves | Learned location of Mines (-9) 2343 | -10/Subcaves | Shifting Twisted Machinery released Sub. Laser 2353 | -10/Subcaves | Shifting Twisted Machinery released Sub. Optics 2387 | -10/Subcaves | Learned location of Zion (-6) 2387 | -10/Subcaves | Met a Zionite searching for "candidates" 2481 | -10/Subcaves | Discovered new exit (range 15) 2501 | -10/Subcaves | A swath of the cavern ceiling suddenly collapsed 2557 | -10/Subcaves | Build established: Scavenger-Mutant 2943 | -10/Subcaves | Core integrity fell below 50% 2947 | -10/Subcaves | Ambushed by Subdweller buried in earth 2951 | -10/Subcaves | Core integrity fell below 20% 2962 | -10/Subcaves | Destroyed by G3-RY8(R) with Subdweller Laser Last Messages --------------- Acquired Datajack. Dropped Flight Unit. Acquired Mak. Leg. Dropped Mak. Leg. Dropped Flight Unit. Acquired Mak. Leg. Dropped Lgt. Ion Engine. Subatomizers dissect the Sub. Monowheel. M0-SHR(R) destroyed. Sub. Power Source destroyed. Destroyed Sub. Power Source. Critical hit (Meltdown: +260). GK-3CE(R) destroyed. [Achievement: Do Not Disturb] G3-RY8(R): "FREEEEDUMB!" Sub. Shrapnel Launcher destroyed. Destroyed Sub. Shrapnel Launcher. G3-RY8(R) affixes Scrap Shield Fragment to Scrap Shield. [Achievement: Back For More] Map ----- +----------------------------------------------------+ | #????# ##???####????????????????????????????? | | ###??# #??## ###??????????????????????????? | | ##??# #?## ##?????????????????????????? | | #???# ### #?????????????????????????? | | # #???# ## #?????????????????????????? | | # ##???# #?????????????????????????? | | # #????## ##?????????????????????????? | | # #?????# ## ##??????????????????????????? | | # ##?#### ### #???????????????????????????? | | ### ### ##???????????????????????????? | | # ## ### #????????????????????????????? | | ## #?# ##????????????????????????????? | | ##?## #####?????????????????????????? | | #???# ##????????????????????????? | | ##### ##??## # #### # ##???????????????? | | #???# #??# #???????????????? | | ???## #??#### #???????????????? | | ??## ##?????### # # #??????????????? | | ?## #????????# ####????????????????????? | | ## ## ##???????## ###?????????????????????? | | ###### ##?????### ;;#?????????????????????? | | ##???## ####### ###???????????????????? | | ###???## # ## #???????????????????? | | ??????# ### #???????????????????? | | ??????# # R #???????????????????? | | ??????# ## @ #???????????????????? | | ?????# #### #???????????????????? | | ?????#####??# # ##???????????????????? | | ????????????##### #???????????????????? | | ???????????????# ##???????????????????? | | ???????????????# #; ;#;; ????????????????????? | | ???????????????## ##### ###???????????????????? | | ????????????????# #### #???????????????????? | | ????????????????## # #???????????????????? | | ????????????????## =* #???????????????????? | | ???????????????## *!## #???????????????????? | | ???????????????#"" #= ####???????????????????? | | ??????????????##" "" #?????????????????????? | | ??????????????# # ####????????????????? | | ??????????????## # #????????????????? | | ??????????????#" "# ### ##????????????????? | | ??????????????#^ && [ #??# ??????????????? | | ??????????????# # #??? # # ????????????? | | ??????????????# &*=#####????#?#? ????????????? | | ???????####???## ####?????????????? ??????????? | | ??????## ##??# #??????????????????##?????????? | | ?????## ##?## #?????????????????????????????? | | ?????# ### #?????????????????????????????? | | ?????# ] #?????????????????????????????? | | ?????## ###??????????????##"????????????? | +----------------------------------------------------+ Best States ------------- Heat Dissipation 25 Energy Generation 15 Energy Capacity 250 Matter Stores 350 Matter Capacity 350 Sight Range 21 Terrain Scan Density 10 Evasion (%) 62 Defensive Hacking 11 Item Schematics ----------------- None Robot Schematics ------------------ None Fabricated ------------ Nothing Repaired ---------- Nothing Studied --------- None Alien Tech Used ----------------- None Achievements -------------- Back For More Do Not Disturb Challenges ------------ None Game ------ Seed AssemblyHardcellSabre Manual? 0 Play Time 00:28:56 Cumulative 27.7 hours Start 2026.04.25 @ 22:54:26 End 2026.04.26 @ 15:33:26 Sessions 1 Manual Loads 0 Difficulty Rogue Special Mode None Game No. 50 Rogue 50 Adventurer 0 Explorer 0 Win Type - Total 0 Types 0/0/0/0/0/0/0/0/0/0 Lore% 24 Gallery% 24 Achievement% 22 Wizard Run 0 Options --------- Layout 1 ASCII 0 Keyboard 0 Movement Numpad Keybinds 0 Fullscreen 1 Font 32/SmallcapsGlow Map View 50x35 Zoom Use 0% Tactical HUD 0 Map Filters NONE Filters NONE Steam 1 RUN: ee5498a7-e208-40b3-89fd-f298a6d9f346